fUSD/lending_fUSD_20260527
["ID","MTS","AMOUNT","RATE_DAILY","PERIOD"]
[423111883,1779858225000,-333.49082588,0.000244,2]
[423111884,1779858225000,-354.21235291,0.000244,2]
[423111888,1779858225000,-333.49082588,0.000249,2]
[423111887,1779858225000,-350.49070901,0.000246,2]
[423111889,1779858225000,-340.93411368,0.000249,2]
[423111886,1779858225000,-3.7216439,0.000246,2]
[423111895,1779858226000,-302.32810967,0.000246,2]
[423111894,1779858226000,-125.56385782,0.000246,2]
[423111893,1779858226000,-176.76425185,0.000244,2]
[423111892,1779858226000,-302.32810967,0.000244,2]
[423111891,1779858226000,-289.04987044,0.000251,2]
[423111890,1779858226000,-13.27823923,0.000249,2]
[423111898,1779858558000,275.48,0.00025722,120]
[423111921,1779858631000,-177.10617645,0.000251,2]
[423111932,1779858631000,-828.89,0.00026098,2]
[423111935,1779858631000,-723.00088667,0.00026166,2]
[423111931,1779858631000,-256.0,0.00025722,2]
[423111923,1779858631000,-297.69549572,0.000254,2]
[423111933,1779858631000,-1531.02003483,0.00026166,2]
[423111924,1779858631000,-166.66,0.00025421,30]
[423111934,1779858631000,-1238.0790785,0.00026166,2]
[423111928,1779858631000,-300.0,0.00025556,2]
[423111926,1779858631000,-1200.0,0.00025556,2]
[423111925,1779858631000,-300.0,0.00025556,2]
[423111927,1779858631000,-300.0,0.00025556,2]
[423111936,1779858631000,-1488.24,0.00026242,2]
[423111930,1779858631000,-1013.84,0.00025648,2]
[423111929,1779858631000,-5000.0,0.00025557,2]
[423111922,1779858631000,-297.69549572,0.000251,2]
[423111940,1779858631000,-524.43,0.00026417,2]
[423111918,1779858631000,-297.69549572,0.000249,2]
[423111937,1779858631000,-177.41,0.0002632,2]
[423111905,1779858631000,-163.5,0.00013477,2]
[423111906,1779858631000,-163.5,0.00016847,2]
[423111908,1779858631000,-39.00748251,0.00023586,2]
[423111907,1779858631000,-163.5,0.00020216,2]
[423111910,1779858631000,-188.96589065,0.000244,2]
[423111909,1779858631000,-124.49251749,0.00023586,2]
[423111912,1779858631000,-297.69549572,0.000244,2]
[423111911,1779858631000,-177.10617645,0.000244,2]
[423111913,1779858631000,-188.96589065,0.000246,2]
[423111914,1779858631000,-137.13847947,0.000246,2]
[423111919,1779858631000,-161.55902973,0.00024982,2]
[423111915,1779858631000,-39.96769698,0.000246,2]
[423111916,1779858631000,-297.69549572,0.000246,2]
[423111917,1779858631000,-177.10617645,0.000249,2]
[423111920,1779858631000,-519.0,0.00025082,2]
[423111938,1779858631000,-256.0,0.00026365,2]
[423111970,1779858631000,-500.0,0.00027573,2]
[423111985,1779858631000,-500.0,0.00027573,2]
[423111942,1779858631000,-150.0,0.00026606,2]
[423111980,1779858631000,-500.0,0.00027573,2]
[423111978,1779858631000,-500.0,0.00027573,2]
[423111976,1779858631000,-500.0,0.00027573,2]
[423111990,1779858631000,-500.0,0.00027573,2]
[423111988,1779858631000,-500.0,0.00027573,2]
[423111972,1779858631000,-500.0,0.00027573,2]
[423111991,1779858631000,-500.0,0.00027573,2]
[423111995,1779858631000,-500.0,0.00027573,2]
[423111996,1779858631000,-154.55329877,0.00027573,2]
[423111998,1779858631000,-150.14587665,0.00027573,2]
[423112002,1779858631000,-1348.18770772,0.00027573,2]
[423112000,1779858631000,-1348.18770772,0.00027573,2]
[423112004,1779858631000,-155.05541416,0.00027573,2]
[423111994,1779858631000,-300.32028737,0.00027573,2]
[423111974,1779858631000,-500.0,0.00027573,2]
[423111982,1779858631000,-237.21366726,0.00027573,2]
[423111968,1779858631000,-309.59291177,0.00027573,2]
[423111941,1779858631000,-165.76,0.00026501,2]
[423111944,1779858631000,-76048.43588906,0.00026607,2]
[423111943,1779858631000,-1000.0,0.00026606,2]
[423111945,1779858631000,-5519.24763634,0.00026607,2]
[423111950,1779858631000,-2991.89784227,0.00026607,2]
[423112006,1779858631000,-1348.18770772,0.00027573,2]
[423111954,1779858631000,-163.5,0.00026955,2]
[423111947,1779858631000,-13287.32054593,0.00026607,2]
[423111956,1779858631000,-256.0,0.00027008,2]
[423111964,1779858631000,-3667.41099498,0.00027475,2]
[423111960,1779858631000,-994.1,0.00027397,10]
[423111962,1779858631000,-1895.69,0.00027397,10]
[423111958,1779858631000,-1000.0,0.00027397,20]
[423111966,1779858631000,-613.00232577,0.00027573,2]
[423111952,1779858631000,-166.66,0.00026759,30]
[423112020,1779858632000,-1348.18770772,0.00027573,2]
[423112019,1779858632000,-1348.18770772,0.00027573,2]
[423112018,1779858632000,-1348.18770772,0.00027573,2]
[423112017,1779858632000,-1348.18770772,0.00027573,2]
[423112011,1779858632000,-1348.18770772,0.00027573,2]
[423112016,1779858632000,-479.18039171,0.00027573,2]
[423112014,1779858632000,-1348.18770772,0.00027573,2]
[423112015,1779858632000,-869.00731601,0.00027573,2]
[423112013,1779858632000,-1348.18770772,0.00027573,2]
[423112008,1779858632000,-1348.18770772,0.00027573,2]
[423112010,1779858632000,-1348.18770772,0.00027573,2]
[423112021,1779858632000,-1348.18770772,0.00027573,2]
[423112012,1779858632000,-1348.18770772,0.00027573,2]
[423112023,1779858632000,-1348.18770772,0.00027573,2]
[423112037,1779858632000,-348.13125277,0.00027573,2]
[423112025,1779858632000,-1348.18770772,0.00027573,2]
[423112034,1779858632000,-263.224353,0.00027573,2]
[423112038,1779858632000,-518.325,0.00027573,2]
[423112036,1779858632000,-75.33514723,0.00027573,2]
[423112022,1779858632000,-1348.18770772,0.00027573,2]
[423112035,1779858632000,-302.67349301,0.00027573,2]
[423112033,1779858632000,-706.95471448,0.00027573,2]
[423112031,1779858632000,-1348.18770772,0.00027573,2]
[423112030,1779858632000,-1348.18770772,0.00027573,2]
[423112029,1779858632000,-1348.18770772,0.00027573,2]
[423112028,1779858632000,-1348.18770772,0.00027573,2]
[423112026,1779858632000,-1348.18770772,0.00027573,2]
[423112024,1779858632000,-1348.18770772,0.00027573,2]
[423112027,1779858632000,-1348.18770772,0.00027573,2]
[423112032,1779858632000,-113.20421598,0.00027573,2]
[423112046,1779858637000,-3557.8822,0.00027575,2]
[423112056,1779858637000,-275.48,0.00028139,120]
[423112044,1779858637000,-500.0,0.00027573,2]
[423112045,1779858637000,-520922.9765,0.00027574,2]
[423112042,1779858637000,-1099.64347239,0.00027573,15]
[423112043,1779858637000,-500.0,0.00027573,2]
[423112040,1779858637000,-1579.74,0.00027564,10]
[423112041,1779858637000,-500.0,0.00027572,2]
[423112053,1779858637000,-200.0,0.00027753,2]
[423112049,1779858637000,-500.0,0.00027674,2]
[423112055,1779858637000,-166.66,0.00028097,30]
[423112050,1779858637000,-1226.531,0.00027674,17]
[423112048,1779858637000,-169.7690528,0.00027674,17]
[423112051,1779858637000,-151.0,0.00027674,2]
[423112054,1779858637000,-1680.0,0.00027794,2]
[423112047,1779858637000,-256.0,0.00027651,2]
[423112057,1779858637000,-200.0,0.00028166,2]
[423112058,1779858637000,-256.0,0.00028294,2]
[423112052,1779858637000,-150.0,0.00027674,20]
[423112139,1779858638000,-500.0,0.00034915,2]
[423112137,1779858638000,-500.0,0.00034915,2]
[423112123,1779858638000,-150.0,0.00033214,7]
[423112121,1779858638000,-150.0,0.00033214,7]
[423112117,1779858638000,-1193.82468263,0.00033015,102]
[423112105,1779858638000,-150.0,0.00032296,2]
[423112107,1779858638000,-150.124,0.00032296,2]
[423112113,1779858638000,-761.0,0.00032379,5]
[423112141,1779858638000,-500.0,0.00034915,2]
[423112119,1779858638000,-524.43,0.00033022,120]
[423112115,1779858638000,-3667.41099494,0.000327,2]
[423112103,1779858638000,-6063.0,0.00031563,2]
[423112143,1779858638000,-500.0,0.00034915,2]
[423112147,1779858638000,-519.0,0.00035067,12]
[423112128,1779858638000,-500.0,0.000334,7]
[423112145,1779858638000,-200.66,0.00034915,2]
[423112130,1779858638000,-4170.0,0.00033463,7]
[423112131,1779858638000,-314.41,0.00033844,2]
[423112135,1779858638000,-6063.0,0.00034563,2]
[423112133,1779858638000,-3667.41099494,0.00034007,2]
[423112149,1779858638000,-150.0,0.00035296,2]
[423112151,1779858638000,-606.0,0.00035309,5]
[423112158,1779858638000,-176.60117837,0.0003539,2]
[423112160,1779858638000,-300.0,0.0003539,2]
[423112155,1779858638000,-500.0,0.00035376,7]
[423112153,1779858638000,-3667.41099494,0.00035313,2]
[423112125,1779858638000,-150.0,0.00033214,7]
[423112109,1779858638000,-150.0,0.00032296,2]
[423112224,1779858638000,-894.65434383,0.0003539,2]
[423112099,1779858638000,-2416.257,0.00031501,2]
[423112172,1779858638000,-300.0,0.0003539,2]
[423112059,1779858638000,-4210.0,0.00028463,7]
[423112071,1779858638000,-1088.7983412,0.00029501,57]
[423112068,1779858638000,-155.89387206,0.000295,2]
[423112063,1779858638000,-166.7,0.00028517,2]
[423112065,1779858638000,-3667.41099494,0.00028781,2]
[423112073,1779858638000,-168.0,0.00029666,30]
[423112070,1779858638000,-984.04781558,0.00029501,57]
[423112061,1779858638000,-191.04,0.00028496,120]
[423112066,1779858638000,-250.9679839,0.00029,120]
[423112067,1779858638000,-459.11,0.000292,2]
[423112072,1779858638000,-1120.13388961,0.00029501,57]
[423112069,1779858638000,-471.15607564,0.00029501,57]
[423112074,1779858638000,-156.0,0.00029666,30]
[423112075,1779858638000,-153.0,0.00029666,30]
[423112077,1779858638000,-1000.0,0.000297,7]
[423112085,1779858638000,-299.99,0.0003062,12]
[423112082,1779858638000,-3667.41099494,0.00030088,2]
[423112078,1779858638000,-524.43,0.00029719,120]
[423112080,1779858638000,-519.0,0.00030075,7]
[423112094,1779858638000,-169.3,0.00030758,2]
[423112086,1779858638000,-9999.99,0.0003062,2]
[423112088,1779858638000,-999.99,0.0003062,2]
[423112090,1779858638000,-161.0,0.00030666,30]
[423112092,1779858638000,-6183.4693163,0.0003074,2]
[423112096,1779858638000,-3667.41099494,0.00031394,2]
[423112101,1779858638000,-931.0,0.00031563,2]
[423112111,1779858638000,-152.0,0.00032359,7]
[423112162,1779858638000,-300.0,0.0003539,2]
[423112228,1779858638000,-300.0,0.0003539,2]
[423112168,1779858638000,-1096.2926835,0.0003539,2]
[423112242,1779858638000,-300.0,0.0003539,2]
[423112240,1779858638000,-300.0,0.0003539,2]
[423112163,1779858638000,-300.0,0.0003539,2]
[423112248,1779858638000,-300.0,0.0003539,2]
[423112259,1779858638000,-372.88318182,0.0003539,2]
[423112257,1779858638000,-527.62572404,0.0003539,2]
[423112250,1779858638000,-1263.96825586,0.0003539,2]
[423112255,1779858638000,-344.45437934,0.0003539,2]
[423112253,1779858638000,-300.0,0.0003539,2]
[423112272,1779858638000,-300.09384644,0.0003539,2]
[423112270,1779858638000,-950.32029804,0.0003539,2]
[423112261,1779858638000,-300.0,0.0003539,2]
[423112244,1779858638000,-300.0,0.0003539,2]
[423112268,1779858638000,-865.6208675,0.0003539,2]
[423112264,1779858638000,-300.0,0.0003539,2]
[423112274,1779858638000,-300.0,0.0003539,2]
[423112277,1779858638000,-1148.83589152,0.0003539,2]
[423112281,1779858638000,-406.47561395,0.0003539,2]
[423112279,1779858638000,-310.02493426,0.0003539,2]
[423112285,1779858638000,-1634.44392223,0.0003539,2]
[423112283,1779858638000,-533.37891269,0.0003539,2]
[423112290,1779858638000,-300.0,0.0003539,2]
[423112288,1779858638000,-300.0,0.0003539,2]
[423112294,1779858638000,-594.79850986,0.0003539,2]
[423112292,1779858638000,-300.0,0.0003539,2]
[423112297,1779858638000,-300.0,0.0003539,2]
[423112266,1779858638000,-300.0,0.0003539,2]
[423112238,1779858638000,-300.0,0.0003539,2]
[423112246,1779858638000,-300.0,0.0003539,2]
[423112230,1779858638000,-302.21937029,0.0003539,2]
[423112165,1779858638000,-300.0,0.0003539,2]
[423112174,1779858638000,-300.0,0.0003539,2]
[423112178,1779858638000,-300.0,0.0003539,2]
[423112180,1779858638000,-300.0,0.0003539,2]
[423112184,1779858638000,-300.0,0.0003539,2]
[423112182,1779858638000,-300.0,0.0003539,2]
[423112176,1779858638000,-300.0,0.0003539,2]
[423112195,1779858638000,-300.0,0.0003539,2]
[423112226,1779858638000,-727.07827244,0.0003539,2]
[423112189,1779858638000,-300.0,0.0003539,2]
[423112193,1779858638000,-300.0,0.0003539,2]
[423112191,1779858638000,-300.0,0.0003539,2]
[423112198,1779858638000,-300.0,0.0003539,2]
[423112200,1779858638000,-493.38669858,0.0003539,2]
[423112187,1779858638000,-300.0,0.0003539,2]
[423112202,1779858638000,-300.0,0.0003539,2]
[423112211,1779858638000,-300.0,0.0003539,2]
[423112236,1779858638000,-300.99795142,0.0003539,2]
[423112234,1779858638000,-300.0,0.0003539,2]
[423112221,1779858638000,-1068.40163352,0.0003539,2]
[423112219,1779858638000,-528.48327171,0.0003539,2]
[423112232,1779858638000,-300.0,0.0003539,2]
[423112209,1779858638000,-605.31118564,0.0003539,2]
[423112206,1779858638000,-300.0,0.0003539,2]
[423112215,1779858638000,-300.0,0.0003539,2]
[423112204,1779858638000,-300.0,0.0003539,2]
[423112213,1779858638000,-300.0,0.0003539,2]
[423112217,1779858638000,-300.0,0.0003539,2]
[423112389,1779858639000,-300.0,0.0003539,2]
[423112387,1779858639000,-300.0,0.0003539,2]
[423112396,1779858639000,-894.65434383,0.0003539,2]
[423112381,1779858639000,-605.31118564,0.0003539,2]
[423112383,1779858639000,-300.0,0.0003539,2]
[423112379,1779858639000,-300.0,0.0003539,2]
[423112377,1779858639000,-386.65085318,0.0003539,2]
[423112375,1779858639000,-300.0,0.0003539,2]
[423112373,1779858639000,-493.38669858,0.0003539,2]
[423112368,1779858639000,-300.0,0.0003539,2]
[423112394,1779858639000,-1068.40163352,0.0003539,2]
[423112385,1779858639000,-300.0,0.0003539,2]
[423112391,1779858639000,-528.48327171,0.0003539,2]
[423112421,1779858639000,-344.45437934,0.0003539,2]
[423112400,1779858639000,-300.0,0.0003539,2]
[423112402,1779858639000,-302.21937029,0.0003539,2]
[423112404,1779858639000,-300.0,0.0003539,2]
[423112414,1779858639000,-300.0,0.0003539,2]
[423112417,1779858639000,-300.0,0.0003539,2]
[423112416,1779858639000,-300.0,0.0003539,2]
[423112406,1779858639000,-300.99795142,0.0003539,2]
[423112412,1779858639000,-300.0,0.0003539,2]
[423112418,1779858639000,-1263.96825586,0.0003539,2]
[423112419,1779858639000,-387.03054415,0.0003539,2]
[423112420,1779858639000,-527.62572404,0.0003539,2]
[423112410,1779858639000,-300.0,0.0003539,2]
[423112364,1779858639000,-300.0,0.0003539,2]
[423112398,1779858639000,-727.07827244,0.0003539,2]
[423112362,1779858639000,-300.0,0.0003539,2]
[423112301,1779858639000,-464.48677942,0.0003539,2]
[423112360,1779858639000,-300.0,0.0003539,2]
[423112423,1779858639000,-300.0,0.0003539,2]
[423112314,1779858639000,-300.0,0.0003539,2]
[423112310,1779858639000,-452.52893397,0.0003539,2]
[423112320,1779858639000,-300.0,0.0003539,2]
[423112316,1779858639000,-300.0,0.0003539,2]
[423112318,1779858639000,-300.0,0.0003539,2]
[423112303,1779858639000,-300.0,0.0003539,2]
[423112305,1779858639000,-578.28315025,0.0003539,2]
[423112299,1779858639000,-379.1644297,0.0003539,2]
[423112312,1779858639000,-300.0,0.0003539,2]
[423112307,1779858639000,-300.0,0.0003539,2]
[423112322,1779858639000,-300.0,0.0003539,2]
[423112324,1779858639000,-484.76763572,0.0003539,2]
[423112366,1779858639000,-300.0,0.0003539,2]
[423112326,1779858639000,-310.28230408,0.0003539,2]
[423112338,1779858639000,-361.35437061,0.0003539,2]
[423112343,1779858639000,-1096.2926835,0.0003539,2]
[423112345,1779858639000,-300.0,0.0003539,2]
[423112334,1779858639000,-300.0,0.0003539,2]
[423112332,1779858639000,-300.0,0.0003539,2]
[423112330,1779858639000,-300.0,0.0003539,2]
[423112347,1779858639000,-300.0,0.0003539,2]
[423112349,1779858639000,-300.0,0.0003539,2]
[423112356,1779858639000,-300.0,0.0003539,2]
[423112351,1779858639000,-300.0,0.0003539,2]
[423112358,1779858639000,-300.0,0.0003539,2]
[423112353,1779858639000,-300.0,0.0003539,2]
[423112371,1779858639000,-300.0,0.0003539,2]
[423112336,1779858639000,-300.0,0.0003539,2]
[423112408,1779858639000,-546.09496238,0.0003539,2]
[423112328,1779858639000,-300.0,0.0003539,2]
[423112436,1779858639000,-300.09384644,0.0003539,2]
[423112479,1779858639000,-484.76763572,0.0003539,2]
[423112500,1779858639000,-18200.2102879,0.00036472,2]
[423112498,1779858639000,-519.0,0.00036428,30]
[423112502,1779858639000,-3632.384606,0.00036472,2]
[423112516,1779858639000,-165.36373875,0.00036921,2]
[423112521,1779858639000,-267.24663781,0.000373,30]
[423112518,1779858639000,-250.0,0.00036931,30]
[423112520,1779858639000,-507.21840634,0.000372,2]
[423112506,1779858639000,-500.0,0.00036742,7]
[423112504,1779858639000,-3667.41099494,0.00036619,2]
[423112545,1779858639000,-395.59845196,0.00037802,2]
[423112524,1779858639000,-395.59845196,0.00037325,2]
[423112512,1779858639000,-395.59845196,0.00036849,2]
[423112481,1779858639000,-310.28230408,0.0003539,2]
[423112514,1779858639000,-150.0,0.00036904,7]
[423112525,1779858639000,-1379.7184988,0.00037385,2]
[423112510,1779858639000,-177.41,0.00036849,2]
[423112529,1779858639000,-17315.0,0.000376,30]
[423112528,1779858639000,-6063.0,0.00037563,2]
[423112533,1779858639000,-500.0,0.00037699,7]
[423112535,1779858639000,-500.0,0.00037699,7]
[423112538,1779858639000,-500.0,0.00037699,7]
[423112531,1779858639000,-500.0,0.00037699,7]
[423112539,1779858639000,-500.0,0.00037699,7]
[423112543,1779858639000,-500.0,0.00037699,7]
[423112548,1779858639000,-2000.0,0.000379,7]
[423112546,1779858639000,-2317.0,0.00037889,11]
[423112541,1779858639000,-500.0,0.00037699,7]
[423112508,1779858639000,-10000.0,0.00036831,2]
[423112496,1779858639000,-17315.0,0.000364,30]
[423112425,1779858639000,-300.0,0.0003539,2]
[423112484,1779858639000,-300.0,0.0003539,2]
[423112486,1779858639000,-203.55979943,0.000358,30]
[423112442,1779858639000,-310.02493426,0.0003539,2]
[423112430,1779858639000,-300.0,0.0003539,2]
[423112434,1779858639000,-950.32029804,0.0003539,2]
[423112440,1779858639000,-1148.83589152,0.0003539,2]
[423112444,1779858639000,-300.0,0.0003539,2]
[423112432,1779858639000,-865.6208675,0.0003539,2]
[423112446,1779858639000,-478.36181086,0.0003539,2]
[423112458,1779858639000,-300.0,0.0003539,2]
[423112460,1779858639000,-578.28315025,0.0003539,2]
[423112463,1779858639000,-300.50973823,0.0003539,2]
[423112465,1779858639000,-452.52893397,0.0003539,2]
[423112449,1779858639000,-594.79850986,0.0003539,2]
[423112454,1779858639000,-300.0,0.0003539,2]
[423112438,1779858639000,-379.42334402,0.0003539,2]
[423112451,1779858639000,-300.0,0.0003539,2]
[423112467,1779858639000,-300.0,0.0003539,2]
[423112482,1779858639000,-300.0,0.0003539,2]
[423112490,1779858639000,-514.606923,0.00036307,120]
[423112492,1779858639000,-524.43,0.00036324,120]
[423112477,1779858639000,-300.0,0.0003539,2]
[423112494,1779858639000,-395.59845198,0.00036372,2]
[423112488,1779858639000,-152.43213744,0.00035866,120]
[423112471,1779858639000,-300.0,0.0003539,2]
[423112469,1779858639000,-300.0,0.0003539,2]
[423112475,1779858639000,-466.72874829,0.0003539,2]
[423112456,1779858639000,-464.48677942,0.0003539,2]
[423112447,1779858639000,-531.80023807,0.0003539,2]
[423112473,1779858639000,-300.5201363,0.0003539,2]
[423112613,1779858640000,-151.0,0.00038141,7]
[423112631,1779858640000,-245.0,0.00038141,7]
[423112599,1779858640000,-1544.0,0.00038141,7]
[423112616,1779858640000,-151.0,0.00038141,7]
[423112602,1779858640000,-1544.0,0.00038141,7]
[423112604,1779858640000,-1544.0,0.00038141,7]
[423112618,1779858640000,-173.5410728,0.00038141,7]
[423112622,1779858640000,-151.0,0.00038141,7]
[423112624,1779858640000,-151.0,0.00038141,7]
[423112643,1779858640000,-152.0,0.00038141,7]
[423112629,1779858640000,-151.0,0.00038141,7]
[423112636,1779858640000,-152.0,0.00038141,7]
[423112627,1779858640000,-151.0,0.00038141,7]
[423112638,1779858640000,-152.0,0.00038141,7]
[423112640,1779858640000,-152.0,0.00038141,7]
[423112645,1779858640000,-159.00684823,0.00038141,7]
[423112647,1779858640000,-285.35178168,0.000382,60]
[423112652,1779858640000,-395.59845196,0.00038279,2]
[423112611,1779858640000,-151.0,0.00038141,7]
[423112633,1779858640000,-152.0,0.00038141,7]
[423112607,1779858640000,-1544.0,0.00038141,7]
[423112567,1779858640000,-151.0,0.00038141,7]
[423112597,1779858640000,-1544.0,0.00038141,7]
[423112551,1779858640000,-449.31,0.00037909,7]
[423112550,1779858640000,-2000.0,0.000379,7]
[423112553,1779858640000,-3667.41099494,0.00037926,2]
[423112555,1779858640000,-152.0,0.00038,120]
[423112559,1779858640000,-1544.0,0.00038141,7]
[423112557,1779858640000,-1048.38,0.000381,7]
[423112572,1779858640000,-151.0,0.00038141,7]
[423112650,1779858640000,-507.21840634,0.00038216,2]
[423112563,1779858640000,-1544.0,0.00038141,7]
[423112609,1779858640000,-406.82918514,0.00038141,7]
[423112569,1779858640000,-1544.0,0.00038141,7]
[423112575,1779858640000,-1544.0,0.00038141,7]
[423112580,1779858640000,-1544.0,0.00038141,7]
[423112578,1779858640000,-151.0,0.00038141,7]
[423112583,1779858640000,-151.0,0.00038141,7]
[423112588,1779858640000,-151.0,0.00038141,7]
[423112590,1779858640000,-1544.0,0.00038141,7]
[423112592,1779858640000,-155.55224971,0.00038141,7]
[423112594,1779858640000,-1544.0,0.00038141,7]
[423112585,1779858640000,-1544.0,0.00038141,7]
[423112561,1779858640000,-1544.0,0.00038141,7]
[423112657,1779858640000,-208.91080896,0.00038332,10]
[423112620,1779858640000,-151.0,0.00038141,7]
[423112677,1779858640000,-4170.0,0.00038463,7]
[423112727,1779858640000,-250.0,0.00039135,30]
[423112729,1779858640000,-154.02,0.00039151,120]
[423112740,1779858640000,-3598.17371287,0.00039232,2]
[423112731,1779858640000,-4389.2652235,0.00039184,120]
[423112742,1779858640000,-3667.41099494,0.00039232,2]
[423112736,1779858640000,-2000.0,0.00039221,2]
[423112733,1779858640000,-154.02,0.00039201,120]
[423112744,1779858640000,-395.59845196,0.00039232,2]
[423112746,1779858640000,-154.03733449,0.00039251,120]
[423112723,1779858640000,-154.02,0.00039101,120]
[423112738,1779858640000,-507.21840634,0.00039232,2]
[423112752,1779858640000,-1000.0,0.00039312,2]
[423112756,1779858640000,-1000.0,0.00039312,2]
[423112754,1779858640000,-1000.0,0.00039312,2]
[423112762,1779858640000,-500.0,0.0003932,7]
[423112760,1779858640000,-150.0,0.00039315,30]
[423112758,1779858640000,-1004.10884844,0.00039312,2]
[423112764,1779858640000,-500.0,0.0003932,7]
[423112655,1779858640000,-1068.0,0.00038326,11]
[423112766,1779858640000,-500.0,0.0003932,7]
[423112750,1779858640000,-1000.0,0.00039312,2]
[423112719,1779858640000,-154.0234669,0.00039062,120]
[423112748,1779858640000,-1000.0,0.00039268,60]
[423112716,1779858640000,-154.02,0.00039051,120]
[423112674,1779858640000,-1298.60289446,0.0003843,120]
[423112679,1779858640000,-234.0,0.00038632,60]
[423112725,1779858640000,-250.0,0.00039135,30]
[423112660,1779858640000,-236.67944152,0.00038356,2]
[423112672,1779858640000,-181.85,0.000384,60]
[423112682,1779858640000,-4061.0158362,0.00038673,2]
[423112694,1779858640000,-307.8568096,0.00038868,2]
[423112697,1779858640000,-1251.02721211,0.00038902,2]
[423112684,1779858640000,-810.4945588,0.00038673,2]
[423112686,1779858640000,-181.85,0.0003874,86]
[423112692,1779858640000,-17315.0,0.000388,30]
[423112688,1779858640000,-395.59845196,0.00038755,2]
[423112701,1779858640000,-1000.0,0.00038912,2]
[423112721,1779858640000,-181.85,0.0003908,105]
[423112706,1779858640000,-59933.20441263,0.0003893,2]
[423112708,1779858640000,-500.0,0.00038989,7]
[423112710,1779858640000,-152.0,0.00039,120]
[423112712,1779858640000,-652.12,0.00039,2]
[423112699,1779858640000,-10000.0,0.00038907,2]
[423112714,1779858640000,-32594.188,0.00039,2]
[423112704,1779858640000,-1502.05442422,0.00038912,2]
[423112838,1779858641000,-266.370198,0.00039332,30]
[423112850,1779858641000,-271.961364,0.00039332,30]
[423112846,1779858641000,-151.0,0.00039332,30]
[423112844,1779858641000,-266.370198,0.00039332,30]
[423112831,1779858641000,-228.447021,0.00039332,30]
[423112842,1779858641000,-266.370198,0.00039332,30]
[423112835,1779858641000,-151.0,0.00039332,30]
[423112833,1779858641000,-151.0,0.00039332,30]
[423112852,1779858641000,-151.0,0.00039332,30]
[423112834,1779858641000,-151.0,0.00039332,30]
[423112840,1779858641000,-151.0,0.00039332,30]
[423112848,1779858641000,-266.370198,0.00039332,30]
[423112871,1779858641000,-723.230746,0.00039332,30]
[423112860,1779858641000,-500.0,0.00039332,2]
[423112856,1779858641000,-500.0,0.00039332,2]
[423112862,1779858641000,-151.0,0.00039332,30]
[423112858,1779858641000,-500.0,0.00039332,2]
[423112864,1779858641000,-215.461528,0.00039332,30]
[423112870,1779858641000,-424.62967,0.00039332,30]
[423112868,1779858641000,-424.62967,0.00039332,30]
[423112866,1779858641000,-151.0,0.00039332,30]
[423112872,1779858641000,-151.0,0.00039332,30]
[423112873,1779858641000,-424.62967,0.00039332,30]
[423112875,1779858641000,-424.62967,0.00039332,30]
[423112836,1779858641000,-240.158325,0.00039332,30]
[423112877,1779858641000,-723.230746,0.00039332,30]
[423112854,1779858641000,-500.0,0.00039332,2]
[423112829,1779858641000,-260.88469,0.00039332,30]
[423112786,1779858641000,-250.63306134,0.00039321,30]
[423112824,1779858641000,-151.0,0.00039332,30]
[423112876,1779858641000,-723.230746,0.00039332,30]
[423112768,1779858641000,-466.95324064,0.0003932,7]
[423112770,1779858641000,-1000.0,0.0003932,2]